[Event "EYCC 2017"]
[Site "Mamaia"]
[Date "2017.09.09"]
[Round "5"]
[White "Wikar, Martyna"]
[Black "Hakobyan, Astghik"]
[Result "1-0"]
[ECO "C07"]
[WhiteElo "1943"]
[BlackElo "1708"]
[Annotator "NA"]
[PlyCount "109"]
[EventDate "2017.??.??"]
[EventType "swiss"]
[EventCountry "ROU"]
[SourceTitle "playchess.com"]
[Source "ChessBase"]
[SourceQuality "1"]
[TimeControl "40/5400+30:1800+30"]

1. e4 {[%emt 0:00:00]} e6 {[%emt 0:00:05]} 2. d4 {[%emt 0:00:00]} d5 {[%emt 0:00:04]} 3. Nd2 {[%emt 0:00:03]} c5 {[%emt 0:00:07]} 4. exd5 {[%emt 0:00:11]} Qxd5 {[%emt 0:01:03]} 5. Ngf3 {[%emt 0:00:19]} cxd4 {[%emt 0:00:37]} 6. Bc4 {[%emt 0:00:13]} Qd6 {[%emt 0:00:17]} 7. O-O {[%emt 0:00:32]} Nf6 {[%emt 0:00:17]} 8. Nb3 {[%emt 0:02:03]} Nc6 {[%emt 0:00:29]} 9. Nbxd4 {[%emt 0:03:57]} Nxd4 {[%emt 0:00:22]} 10. Nxd4 {[%emt 0:01:09]} a6 {[%emt 0:00:38]} 11. c3 {[%emt 0:01:09]} Be7 {[%emt 0:01:18]} 12. Qe2 {[%emt 0:01:58]} O-O {[%emt 0:00:42]} 13. Re1 {[%emt 0:04:52]} b5 {[%emt 0:03:29]} 14. Bb3 {[%emt 0:01:20]} Bb7 {[%emt 0:00:57]} 15. Bg5 {[%emt 0:04:11]} Ne4 {[%emt 0:11:09]} 16. Bxe7 {[%emt 0:05:00]} Qxe7 {[%emt 0:00:10]} 17. Bc2 {[%emt 0:03:19]} Nf6 {[%emt 0:03:59]} 18. Rad1 {[%emt 0:03:46]} Rfd8 {[%emt 0:04:43]} 19. Rd3 {[%emt 0:10:30]} Qc5 {[%emt 0:28:24]} 20. Bb3 {[%emt 0:09:16]} e5 {[%emt 0:14:03]} 21. Nc2 {[%emt 0:10:37]} e4 {[%emt 0:07:55]} 22. Rxd8+ {[%emt 0:03:05]} Rxd8 {[%emt 0:00:10]} 23. Nd4 {[%emt 0:02:01]} b4 {[%emt 0:02:50]} 24. Qe3 {[%emt 0:04:11]} bxc3 {[%emt 0:01:26]} 25. bxc3 {[%emt 0:00:50]} Rc8 {[%emt 0:04:55]} 26. Rc1 {[%emt 0:06:18]} Qe5 {[%emt 0:02:30]} 27. Nf3 {[%emt 0:07:20]} Qe7 {[%emt 0:03:47]} 28. Ng5 {[%emt 0:02:46]} Rf8 {[%emt 0:01:21]} 29. Rd1 {[%emt 0:06:24]} h6 {[%emt 0:01:45]} 30. Nh3 {[%emt 0:01:17]} Rc8 {[%emt 0:02:45]} 31. Nf4 {[%emt 0:01:19]} Kh8 {[%emt 0:01:49]} 32. h3 {[%emt 0:01:09]} Qc7 {[%emt 0:00:30]} 33. Ne2 {[%emt 0:00:55]} Re8 {[%emt 0:01:15]} 34. Rd4 {[%emt 0:01:04]} Bc8 {[%emt 0:00:42]} 35. Ng3 {[%emt 0:00:37]} Qb7 {[%emt 0:00:42]} 36. Qf4 {[%emt 0:01:09]} Be6 {[%emt 0:00:23]} 37. Nxe4 {[%emt 0:01:22]} Nh5 {[%emt 0:00:29]} 38. Qe5 {[%emt 0:01:02]} Qb5 {[%emt 0:00:40]} 39. Qxb5 {[%emt 0:00:23]} axb5 {[%emt 0:00:06]} 40. Nd6 {[%emt 0:00:00]} Rf8 {[%emt 0:00:40]} 41. Nxb5 {[%emt 0:02:04]} Rb8 {[%emt 0:00:34]} 42. Bxe6 {[%emt 0:00:36]} fxe6 {[%emt 0:00:08]} 43. a4 {[%emt 0:00:55]} Nf6 {[%emt 0:00:32]} 44. c4 {[%emt 0:05:27]} e5 {[%emt 0:00:52]} 45. Rd1 {[%emt 0:01:06]} Ra8 {[%emt 0:01:22]} 46. Ra1 {[%emt 0:01:05]} Nd7 {[%emt 0:00:42]} 47. a5 {[%emt 0:02:01]} Nc5 {[%emt 0:00:36]} 48. Nc7 {[%emt 0:01:58]} Ra7 {[%emt 0:00:43]} 49. a6 {[%emt 0:02:00]} Kg8 {[%emt 0:01:11]} 50. Ra5 {[%emt 0:01:33]} Nb3 {[%emt 0:00:26]} 51. Nb5 {[%emt 0:02:42]} Ra8 {[%emt 0:02:58]} 52. Ra3 {[%emt 0:00:47]} Nd2 {[%emt 0:00:43]} 53. c5 {[%emt 0:00:59]} Ne4 {[%emt 0:00:41]} 54. a7 {[%emt 0:00:42]} Nxc5 {[%emt 0:02:22]} 55. Nc7 {[%emt 0:00:12]} 1-0

[Event "EYCC 2017"]
[Site "Mamaia"]
[Date "2017.09.09"]
[Round "5"]
[White "Lehaci, Miruna-Daria"]
[Black "Krasteva, Beloslava"]
[Result "0-1"]
[ECO "B90"]
[WhiteElo "1914"]
[BlackElo "2048"]
[Annotator "NA"]
[PlyCount "53"]
[EventDate "2017.??.??"]
[EventType "swiss"]
[EventCountry "ROU"]
[SourceTitle "playchess.com"]
[Source "ChessBase"]
[SourceQuality "1"]
[TimeControl "40/5400+30:1800+30"]

1. e4 {[%emt 0:00:00]} c5 {[%emt 0:00:17]} 2. Nf3 {[%emt 0:00:00]} d6 {[%emt 0:00:20]} 3. d4 {[%emt 0:00:00]} cxd4 {[%emt 0:00:21]} 4. Nxd4 {[%emt 0:00:00]} Nf6 {[%emt 0:00:21]} 5. Nc3 {[%emt 0:00:00]} a6 {[%emt 0:00:24]} 6. Bc4 {[%emt 0:00:03]} e6 {[%emt 0:00:40]} 7. Bb3 {[%emt 0:00:06]} Nbd7 {[%emt 0:00:40]} 8. Bg5 {[%emt 0:00:10]} Nc5 {[%emt 0:02:48]} 9. f4 {[%emt 0:02:57]} Be7 {[%emt 0:05:15]} 10. Qf3 {[%emt 0:02:05]} Qc7 {[%emt 0:05:59]} 11. O-O {[%emt 0:05:58]} b5 {[%emt 0:06:09]} 12. f5 {[%emt 0:16:19]} Nxb3 {[%emt 0:08:36]} 13. axb3 {[%emt 0:02:14]} b4 {[%emt 0:06:11]} 14. e5 {[%emt 0:24:32]} Bb7 {[%emt 0:07:10]} 15. Ndb5 {[%emt 0:16:03]} Qc8 {[%emt 0:16:41]} 16. Qe2 {[%emt 0:01:38]} dxe5 {[%emt 0:04:36]} 17. fxe6 {[%emt 0:05:53]} bxc3 {[%emt 0:09:33]} 18. Bxf6 {[%emt 0:06:15]} gxf6 {[%emt 0:07:59]} 19. Qh5 {[%emt 0:03:50]} Qc5+ {[%emt 0:01:56]} 20. Kh1 {[%emt 0:00:20]} axb5 {[%emt 0:06:22]} 21. exf7+ {[%emt 0:06:12]} Kf8 {[%emt 0:02:30]} 22. Rad1 {[%emt 0:02:58]} Bd5 {[%emt 0:02:45]} 23. Qh6+ {[%emt 0:00:56]} Kxf7 {[%emt 0:00:12]} 24. Qh5+ {[%emt 0:00:18]} Kg7 {[%emt 0:01:15]} 25. bxc3 {[%emt 0:00:42]} Rhg8 {[%emt 0:00:49]} 26. Rd3 {[%emt 0:00:29]} Kh8 {[%emt 0:00:46]} 27. Qd1 0-1

[Event "EYCC 2017"]
[Site "Mamaia"]
[Date "2017.09.09"]
[Round "5"]
[White "Grigoryan, Arpine"]
[Black "Represa Perez, Mireya"]
[Result "1/2-1/2"]
[ECO "B51"]
[WhiteElo "1865"]
[BlackElo "2082"]
[Annotator "NA"]
[PlyCount "80"]
[EventDate "2017.??.??"]
[EventType "swiss"]
[EventCountry "ROU"]
[SourceTitle "playchess.com"]
[Source "ChessBase"]
[SourceQuality "1"]
[TimeControl "40/5400+30:1800+30"]

1. e4 {[%emt 0:00:00]} c5 {[%emt 0:00:05]} 2. Nf3 {[%emt 0:00:00]} d6 {[%emt 0:00:04]} 3. Bb5+ {[%emt 0:00:00]} Nd7 {[%emt 0:00:06]} 4. a4 {[%emt 0:00:17]} a6 {[%emt 0:03:08]} 5. Bc4 {[%emt 0:00:15]} Ngf6 {[%emt 0:01:59]} 6. Nc3 {[%emt 0:04:23]} e6 {[%emt 0:03:27]} 7. O-O {[%emt 0:00:56]} Be7 {[%emt 0:00:23]} 8. d4 {[%emt 0:00:34]} cxd4 {[%emt 0:01:32]} 9. Nxd4 {[%emt 0:00:06]} O-O {[%emt 0:08:18]} 10. Bxe6 {[%emt 0:03:25]} fxe6 {[%emt 0:00:25]} 11. Nxe6 {[%emt 0:00:07]} Qa5 {[%emt 0:02:50]} 12. Nxf8 {[%emt 0:00:10]} Nxf8 {[%emt 0:03:18]} 13. Re1 {[%emt 0:08:17]} Be6 {[%emt 0:04:08]} 14. Nd5 {[%emt 0:06:36]} Bxd5 {[%emt 0:13:02]} 15. exd5 {[%emt 0:00:08]} Ng6 {[%emt 0:00:22]} 16. c4 {[%emt 0:00:53]} Rc8 {[%emt 0:01:47]} 17. b3 {[%emt 0:03:52]} Nd7 {[%emt 0:09:49]} 18. Bb2 {[%emt 0:10:20]} Nde5 {[%emt 0:05:27]} 19. Bxe5 {[%emt 0:18:08]} Nxe5 {[%emt 0:10:00]} 20. f4 {[%emt 0:00:42]} Ng6 {[%emt 0:01:56]} 21. Qg4 {[%emt 0:00:47]} Qc5+ {[%emt 0:03:53]} 22. Kh1 {[%emt 0:00:19]} Kh8 {[%emt 0:02:05]} 23. Re6 {[%emt 0:08:31]} Rf8 {[%emt 0:01:55]} 24. Rae1 {[%emt 0:00:37]} Qf2 {[%emt 0:01:32]} 25. g3 {[%emt 0:02:06]} Bf6 {[%emt 0:05:53]} 26. Qe2 {[%emt 0:01:33]} Qc5 {[%emt 0:06:01]} 27. Re8 {[%emt 0:04:22]} b5 {[%emt 0:03:25]} 28. f5 {[%emt 0:00:34]} Be5 {[%emt 0:00:23]} 29. Re6 {[%emt 0:06:46]} Rxf5 {[%emt 0:00:43]} 30. Rf1 {[%emt 0:00:15]} Rf8 {[%emt 0:02:01]} 31. Rxf8+ {[%emt 0:00:41]} Nxf8 32. Re8 {[%emt 0:00:58]} Kg8 {[%emt 0:00:21]} 33. Qf3 {[%emt 0:00:47]} Bf6 {[%emt 0:01:14]} 34. Qf5 {[%emt 0:00:22]} Kf7 {[%emt 0:01:43]} 35. Rb8 {[%emt 0:05:40]} bxc4 {[%emt 0:01:30]} 36. Qe4 {[%emt 0:00:35]} Be5 {[%emt 0:01:52]} 37. Qf5+ {[%emt 0:10:38]} Bf6 {[%emt 0:00:06]} 38. Qe4 {[%emt 0:01:06]} Be5 {[%emt 0:00:10]} 39. Qf5+ {[%emt 0:00:24]} Bf6 {[%emt 0:00:06]} 40. Qe4 {[%emt 0:00:00]} Be5 {[%emt 0:00:14]} 1/2-1/2

[Event "EYCC 2017"]
[Site "Mamaia"]
[Date "2017.09.09"]
[Round "5"]
[White "Vidruk, Mariia"]
[Black "Aubert, Estee"]
[Result "0-1"]
[ECO "B22"]
[WhiteElo "1848"]
[BlackElo "1800"]
[Annotator "NA"]
[PlyCount "104"]
[EventDate "2017.??.??"]
[EventType "swiss"]
[EventCountry "ROU"]
[SourceTitle "playchess.com"]
[Source "ChessBase"]
[SourceQuality "1"]
[TimeControl "40/5400+30:1800+30"]

1. e4 {[%emt 0:00:00]} c5 {[%emt 0:00:04]} 2. c3 {[%emt 0:00:00]} Nf6 {[%emt 0:00:09]} 3. e5 {[%emt 0:00:00]} Nd5 {[%emt 0:00:06]} 4. d4 {[%emt 0:00:03]} cxd4 {[%emt 0:00:10]} 5. cxd4 {[%emt 0:00:10]} e6 {[%emt 0:00:12]} 6. Nf3 {[%emt 0:00:13]} d6 {[%emt 0:00:10]} 7. Bc4 {[%emt 0:00:25]} Be7 {[%emt 0:00:12]} 8. O-O {[%emt 0:00:36]} O-O {[%emt 0:00:07]} 9. Bd2 {[%emt 0:00:56]} b6 {[%emt 0:00:56]} 10. Nc3 {[%emt 0:00:53]} Nxc3 {[%emt 0:03:16]} 11. Bxc3 {[%emt 0:00:35]} Bb7 {[%emt 0:00:55]} 12. Re1 {[%emt 0:04:56]} Nd7 {[%emt 0:04:05]} 13. Qe2 {[%emt 0:08:31]} Rc8 {[%emt 0:03:03]} 14. Bb3 {[%emt 0:02:37]} dxe5 {[%emt 0:02:28]} 15. dxe5 {[%emt 0:00:52]} Nc5 {[%emt 0:01:15]} 16. Rad1 {[%emt 0:16:54]} Qc7 {[%emt 0:00:39]} 17. Bc2 {[%emt 0:01:56]} a5 {[%emt 0:00:34]} 18. Qe3 {[%emt 0:07:04]} Bd5 {[%emt 0:03:54]} 19. Nd4 {[%emt 0:06:22]} Qb7 {[%emt 0:02:01]} 20. Qh3 {[%emt 0:00:37]} Be4 {[%emt 0:02:34]} 21. Bxe4 {[%emt 0:01:19]} Nxe4 {[%emt 0:00:10]} 22. Qf3 {[%emt 0:02:37]} Nc5 {[%emt 0:00:44]} 23. Qg4 {[%emt 0:02:23]} Rfd8 {[%emt 0:01:31]} 24. Nb5 {[%emt 0:03:04]} Rxd1 {[%emt 0:04:32]} 25. Rxd1 {[%emt 0:00:26]} Qe4 {[%emt 0:00:15]} 26. Qxe4 {[%emt 0:08:34]} Nxe4 {[%emt 0:00:04]} 27. f3 {[%emt 0:09:02]} Nxc3 {[%emt 0:05:05]} 28. Nxc3 {[%emt 0:00:15]} Rc5 {[%emt 0:10:00]} 29. f4 {[%emt 0:01:20]} Rc4 {[%emt 0:02:58]} 30. g3 {[%emt 0:03:19]} g5 {[%emt 0:00:14]} 31. Rf1 {[%emt 0:01:31]} Rd4 {[%emt 0:02:46]} 32. Kg2 {[%emt 0:04:18]} h6 {[%emt 0:05:25]} 33. Kf3 {[%emt 0:01:35]} Bc5 {[%emt 0:01:51]} 34. Rd1 {[%emt 0:01:01]} Rc4 {[%emt 0:03:26]} 35. Rd2 {[%emt 0:01:46]} Kg7 {[%emt 0:00:55]} 36. Ne4 {[%emt 0:00:54]} g4+ {[%emt 0:00:12]} 37. Kxg4 {[%emt 0:01:38]} Rxe4 {[%emt 0:00:03]} 38. h4 {[%emt 0:00:48]} a4 {[%emt 0:01:37]} 39. Rc2 {[%emt 0:01:11]} Rb4 {[%emt 0:00:25]} 40. Rd2 {[%emt 0:00:00]} Bd4 {[%emt 0:01:22]} 41. a3 {[%emt 0:01:45]} Rc4 {[%emt 0:00:26]} 42. Kf3 {[%emt 0:00:45]} Bc5 {[%emt 0:00:31]} 43. g4 {[%emt 0:01:06]} Rd4 {[%emt 0:00:28]} 44. Rc2 {[%emt 0:01:51]} Rd3+ {[%emt 0:00:05]} 45. Kg2 {[%emt 0:00:12]} Be3 {[%emt 0:01:23]} 46. Kf3 {[%emt 0:01:16]} Bc5+ {[%emt 0:00:51]} 47. Kg2 {[%emt 0:00:06]} Rb3 {[%emt 0:01:07]} 48. f5 {[%emt 0:00:54]} Re3 {[%emt 0:03:05]} 49. f6+ {[%emt 0:00:31]} Kg6 {[%emt 0:00:19]} 50. Rc4 {[%emt 0:00:55]} Rxe5 {[%emt 0:02:00]} 51. Rxa4 {[%emt 0:00:24]} Re2+ {[%emt 0:00:16]} 52. Kf3 {[%emt 0:00:34]} Rxb2 {[%emt 0:01:00]} 0-1

[Event "EYCC 2017"]
[Site "Mamaia"]
[Date "2017.09.09"]
[Round "5"]
[White "Pawicka, Magdalena"]
[Black "Mustu, Hatice Asli"]
[Result "1/2-1/2"]
[ECO "B80"]
[WhiteElo "1826"]
[BlackElo "1365"]
[Annotator "NA"]
[PlyCount "49"]
[EventDate "2017.??.??"]
[EventType "swiss"]
[EventCountry "ROU"]
[SourceTitle "playchess.com"]
[Source "ChessBase"]
[SourceQuality "1"]
[TimeControl "40/5400+30:1800+30"]

1. e4 {[%emt 0:00:00]} c5 {[%emt 0:00:09]} 2. Nf3 {[%emt 0:00:00]} e6 {[%emt 0:00:09]} 3. d4 {[%emt 0:00:00]} cxd4 {[%emt 0:00:07]} 4. Nxd4 {[%emt 0:00:00]} Nf6 {[%emt 0:00:14]} 5. Nc3 {[%emt 0:00:29]} d6 {[%emt 0:00:26]} 6. Bd3 {[%emt 0:05:35]} a6 {[%emt 0:01:31]} 7. O-O {[%emt 0:03:40]} Be7 {[%emt 0:02:37]} 8. Qe2 {[%emt 0:03:50]} O-O {[%emt 0:01:46]} 9. Be3 {[%emt 0:06:34]} b6 {[%emt 0:08:18]} 10. Rae1 {[%emt 0:03:09]} Bb7 {[%emt 0:03:27]} 11. f4 {[%emt 0:03:47]} Nbd7 {[%emt 0:02:26]} 12. Nb3 {[%emt 0:07:18]} b5 {[%emt 0:03:44]} 13. a3 {[%emt 0:01:48]} Nc5 {[%emt 0:01:56]} 14. Bf2 {[%emt 0:07:53]} Nxd3 {[%emt 0:05:13]} 15. cxd3 {[%emt 0:01:39]} Rc8 {[%emt 0:02:22]} 16. Nd4 {[%emt 0:06:14]} Re8 {[%emt 0:08:03]} 17. g4 {[%emt 0:04:54]} Nd7 {[%emt 0:13:35]} 18. g5 {[%emt 0:03:26]} e5 19. Nf5 {[%emt 0:08:48]} exf4 {[%emt 0:15:35]} 20. Nxe7+ {[%emt 0:01:17]} Qxe7 {[%emt 0:00:33]} 21. h4 {[%emt 0:00:15]} Ne5 {[%emt 0:00:24]} 22. Bd4 {[%emt 0:01:06]} f3 {[%emt 0:00:02]} 23. Qe3 {[%emt 0:01:05]} Qe6 {[%emt 0:00:31]} 24. Rxf3 {[%emt 0:06:08]} Nxf3+ {[%emt 0:01:09]} 25. Qxf3 1/2-1/2

[Event "EYCC 2017"]
[Site "Mamaia"]
[Date "2017.09.09"]
[Round "5"]
[White "Kostecka, Marika"]
[Black "Cramling Bellon, Anna"]
[Result "0-1"]
[ECO "B90"]
[WhiteElo "1811"]
[BlackElo "1926"]
[Annotator "NA"]
[PlyCount "60"]
[EventDate "2017.??.??"]
[EventType "swiss"]
[EventCountry "ROU"]
[SourceTitle "playchess.com"]
[Source "ChessBase"]
[SourceQuality "1"]
[TimeControl "40/5400+30:1800+30"]

1. e4 {[%emt 0:00:00]} c5 {[%emt 0:00:04]} 2. Nf3 {[%emt 0:00:00]} d6 {[%emt 0:00:02]} 3. d4 {[%emt 0:00:00]} cxd4 {[%emt 0:00:04]} 4. Nxd4 {[%emt 0:00:12]} Nf6 {[%emt 0:00:04]} 5. Nc3 {[%emt 0:00:08]} a6 {[%emt 0:00:03]} 6. Be3 {[%emt 0:00:21]} Ng4 {[%emt 0:01:43]} 7. Bc1 {[%emt 0:02:45]} Nf6 {[%emt 0:00:10]} 8. Be3 {[%emt 0:00:06]} Ng4 {[%emt 0:20:13]} 9. Bg5 {[%emt 0:02:10]} h6 {[%emt 0:00:09]} 10. Bh4 {[%emt 0:00:04]} g5 {[%emt 0:00:02]} 11. Bg3 {[%emt 0:00:06]} Bg7 {[%emt 0:00:07]} 12. h3 {[%emt 0:00:25]} Ne5 {[%emt 0:00:19]} 13. Nf5 {[%emt 0:01:39]} Bxf5 {[%emt 0:09:45]} 14. exf5 {[%emt 0:00:06]} Qd7 {[%emt 0:00:57]} 15. Nd5 {[%emt 0:01:20]} Qc6 {[%emt 0:02:37]} 16. Be2 {[%emt 0:08:03]} Nbd7 {[%emt 0:00:28]} 17. O-O {[%emt 0:04:53]} Nf6 {[%emt 0:09:24]} 18. Ne3 {[%emt 0:00:42]} Rd8 {[%emt 0:03:13]} 19. c4 {[%emt 0:10:05]} h5 {[%emt 0:08:28]} 20. Rc1 {[%emt 0:25:14]} Ne4 {[%emt 0:12:37]} 21. Bh2 {[%emt 0:01:03]} g4 {[%emt 0:05:47]} 22. hxg4 {[%emt 0:02:36]} hxg4 {[%emt 0:00:09]} 23. Nxg4 {[%emt 0:01:53]} Nxg4 {[%emt 0:00:41]} 24. Bxg4 {[%emt 0:00:30]} Be5 {[%emt 0:16:07]} 25. Bxe5 {[%emt 0:01:04]} dxe5 {[%emt 0:00:01]} 26. Qf3 {[%emt 0:02:18]} Qh6 {[%emt 0:00:45]} 27. Qh3 {[%emt 0:00:37]} Qg7 {[%emt 0:01:01]} 28. Qe3 {[%emt 0:07:51]} Qxg4 {[%emt 0:02:08]} 29. f3 {[%emt 0:00:15]} Qg3 {[%emt 0:00:33]} 30. Qxe4 {[%emt 0:01:38]} Rd2 {[%emt 0:00:10]} 0-1

[Event "EYCC 2017"]
[Site "Mamaia"]
[Date "2017.09.09"]
[Round "5"]
[White "Dejanovic, Tereza"]
[Black "Miroshnik, Ekaterina"]
[Result "0-1"]
[ECO "B22"]
[WhiteElo "1808"]
[BlackElo "2006"]
[Annotator "NA"]
[PlyCount "107"]
[EventDate "2017.??.??"]
[EventType "swiss"]
[EventCountry "ROU"]
[SourceTitle "playchess.com"]
[Source "ChessBase"]
[SourceQuality "1"]
[TimeControl "40/5400+30:1800+30"]

1. e4 {[%emt 0:00:00]} c5 {[%emt 0:00:06]} 2. c3 {[%emt 0:00:00]} Nf6 {[%emt 0:00:12]} 3. e5 {[%emt 0:00:00]} Nd5 {[%emt 0:00:05]} 4. d4 {[%emt 0:00:00]} cxd4 {[%emt 0:00:04]} 5. Nf3 {[%emt 0:00:01]} e6 {[%emt 0:01:00]} 6. cxd4 {[%emt 0:00:08]} d6 {[%emt 0:00:08]} 7. Bc4 {[%emt 0:02:31]} Be7 {[%emt 0:00:05]} 8. O-O {[%emt 0:00:30]} O-O {[%emt 0:00:04]} 9. Re1 {[%emt 0:06:21]} Nc6 {[%emt 0:03:50]} 10. a3 {[%emt 0:06:08] B22: Sicilian: 2 c3} Bd7 {[%emt 0:07:32]} (10... b6 11. Qe2 dxe5 12. dxe5 Bb7 13. Bd2 Bc5 14. Nc3 Nxc3 15. Bxc3 Nd4 16. Nxd4 Bxd4 17. Bxd4 Qxd4 {½-½ (31) Howell,D (2688)-So,W (2775) Doha 2015}) 11. Bxd5 {[%emt 0:02:33]} exd5 {[%emt 0:00:15]} 12. Qb3 $146 {[%emt 0:01:30]} ({Predecessor:} 12. Nc3 Be6 13. Bf4 dxe5 14. Nxe5 Nxe5 15. Bxe5 Qd7 16. Qb3 Rfc8 17. Rad1 Rc6 {0-1 (38) Kersten,U (2280)-Keymer,V (2428) Schwaebisch Gmuend 2017}) 12... Na5 {[%emt 0:04:01]} 13. Qd3 {[%emt 0:03:18]} h6 {[%emt 0:10:29]} 14. Bf4 {[%emt 0:06:42]} Be6 {[%emt 0:03:06]} 15. exd6 {[%emt 0:08:11]} Bxd6 {[%emt 0:00:14]} 16. Bxd6 {[%emt 0:00:04]} Qxd6 {[%emt 0:00:04]} 17. Nbd2 {[%emt 0:03:07]} Nc4 {[%emt 0:07:09]} 18. Rab1 {[%emt 0:07:23]} Qf4 {[%emt 0:14:43]} 19. Nxc4 {[%emt 0:02:49]} dxc4 {[%emt 0:00:20]} 20. Qe3 {[%emt 0:00:35]} Qxe3 {[%emt 0:05:57]} 21. fxe3 {[%emt 0:01:12]} f5 {[%emt 0:01:04]} 22. Ne5 {[%emt 0:01:06]} Rfd8 {[%emt 0:02:31]} 23. Red1 {[%emt 0:03:06]} Rac8 {[%emt 0:04:57]} 24. Rbc1 {[%emt 0:02:25]} b5 {[%emt 0:01:01]} 25. g4 {[%emt 0:11:23]} Rd6 26. gxf5 {[%emt 0:06:08]} Bxf5 {[%emt 0:19:42]} 27. Rf1 {[%emt 0:01:19]} Be6 {[%emt 0:04:19]} 28. Rf2 {[%emt 0:07:52]} a5 {[%emt 0:05:17]} 29. Rfc2 $11 {[%emt 0:05:22]} Kh7 {[%emt 0:04:42]} 30. Rd2 {[%emt 0:04:08]} Bd5 {[%emt 0:00:51]} 31. Re2 {[%emt 0:02:05]} Be4 {[%emt 0:01:22]} 32. Rf2 {[%emt 0:01:24]} Bd5 {[%emt 0:00:36]} 33. Re2 {[%emt 0:00:21]} Be4 {[%emt 0:00:06]} 34. Rf2 {[%emt 0:00:07]} Rf6 {[%emt 0:00:46]} 35. Rd2 {[%emt 0:02:55]} Rd6 {[%emt 0:00:13]} 36. Rf2 {[%emt 0:01:29]} Rf6 {[%emt 0:00:05]} 37. Rd2 {[%emt 0:00:07]} Rf5 {[%emt 0:00:56]} 38. Rf2 {[%emt 0:01:50]} Rf6 {[%emt 0:00:40]} 39. Rd2 {[%emt 0:01:20]} Rf5 {[%emt 0:00:12]} 40. Rf2 {[%emt 0:00:00]} Rf6 {[%emt 0:00:36]} 41. Rd2 {[%emt 0:03:30]} Rcf8 {[%emt 0:06:22]} 42. a4 {[%emt 0:07:11]} b4 {[%emt 0:09:51]} 43. h4 {[%emt 0:03:08]} c3 {[%emt 0:03:09]} 44. bxc3 {[%emt 0:02:40]} bxc3 {[%emt 0:00:17]} 45. Rxc3 {[%emt 0:01:11]} Rf1+ {[%emt 0:00:15]} 46. Kh2 {[%emt 0:00:04]} Rh1+ {[%emt 0:03:12]} 47. Kg3 {[%emt 0:00:06]} Rff1 {[%emt 0:01:00]} 48. Rc7 {[%emt 0:07:18]} Rfg1+ {[%emt 0:02:28]} 49. Kf4 {[%emt 0:00:07]} Rxh4+ {[%emt 0:00:17]} 50. Ng4 {[%emt 0:00:06]} Rgxg4+ {[%emt 0:00:33]} 51. Ke5 {[%emt 0:00:07]} Rg5+ {[%emt 0:00:16]} 52. Kd6 {[%emt 0:00:55]} Rd5+ {[%emt 0:02:03]} 53. Ke7 {[%emt 0:00:47]} Bh1 {[%emt 0:02:20]} 54. Rd7 0-1

[Event "EYCC 2017"]
[Site "Mamaia"]
[Date "2017.09.09"]
[Round "5"]
[White "Mkrtchyan, Anahit"]
[Black "Keskinler, Ela"]
[Result "1-0"]
[ECO "B51"]
[WhiteElo "1806"]
[BlackElo "1276"]
[Annotator "NA"]
[PlyCount "43"]
[EventDate "2017.??.??"]
[EventType "swiss"]
[EventCountry "ROU"]
[SourceTitle "playchess.com"]
[Source "ChessBase"]
[SourceQuality "1"]
[TimeControl "40/5400+30:1800+30"]

1. e4 {[%emt 0:00:00]} c5 {[%emt 0:00:09]} 2. Nf3 {[%emt 0:00:00]} d6 {[%emt 0:00:05]} 3. Bb5+ {[%emt 0:00:00]} Nc6 {[%emt 0:00:12]} 4. O-O {[%emt 0:00:08]} Bd7 {[%emt 0:00:02]} 5. c3 {[%emt 0:00:33]} Nf6 {[%emt 0:02:28]} 6. Re1 {[%emt 0:00:44]} g6 {[%emt 0:05:22]} 7. d4 {[%emt 0:00:28]} cxd4 {[%emt 0:01:12]} 8. cxd4 {[%emt 0:00:18]} a6 {[%emt 0:04:12]} 9. Bc4 {[%emt 0:01:23]} b5 {[%emt 0:07:23]} 10. e5 {[%emt 0:00:59]} dxe5 {[%emt 0:02:02]} 11. dxe5 {[%emt 0:01:59]} Nxe5 {[%emt 0:03:37]} 12. Nxe5 {[%emt 0:00:16]} bxc4 {[%emt 0:00:06]} 13. Nxc4 {[%emt 0:00:07]} Bc6 {[%emt 0:15:51]} 14. Nd6+ {[%emt 0:00:07]} Kd7 {[%emt 0:49:20]} 15. Nxf7+ {[%emt 0:00:14]} Kc7 {[%emt 0:00:12]} 16. Bf4+ {[%emt 0:00:24]} Kb7 {[%emt 0:00:13]} 17. Nxd8+ {[%emt 0:00:23]} Rxd8 {[%emt 0:00:31]} 18. Qxd8 {[%emt 0:00:16]} Bg7 {[%emt 0:00:48]} 19. Rxe7+ {[%emt 0:00:10]} Nd7 {[%emt 0:00:13]} 20. Qc7+ {[%emt 0:00:07]} Ka8 {[%emt 0:00:08]} 21. Qxc6+ {[%emt 0:00:16]} Ka7 {[%emt 0:00:03]} 22. Rxd7# {[%emt 0:00:06]} 1-0